[Event "RUS Cup Final Women 2018"]
[Site "Khanty-Mansiysk"]
[Date "2018.12.07"]
[Round "2.1"]
[White "Shuvalova, Polina"]
[Black "Charochkina, Daria"]
[Result "1-0"]
[ECO "B13"]
[WhiteElo "2441"]
[BlackElo "2344"]
[Annotator "NA"]
[PlyCount "157"]
[EventDate "2018.12.05"]
[EventType "k.o."]
[EventCountry "RUS"]
[SourceTitle "playchess.com"]
[Source "ChessBase"]
[SourceQuality "1"]
[TimeControl "5400+30"]

1. e4 {[%emt 0:00:00]} c6 {[%emt 0:00:00]} 2. d4 {[%emt 0:00:00]} d5 {[%emt 0:00:00]} 3. exd5 {[%emt 0:00:00]} cxd5 {[%emt 0:00:00]} 4. Bd3 {[%emt 0:00:00]} Nc6 {[%emt 0:00:03]} 5. c3 {[%emt 0:00:00]} Qc7 {[%emt 0:00:05]} 6. Ne2 {[%emt 0:00:00]} Bg4 {[%emt 0:00:06]} 7. O-O {[%emt 0:00:02] B13: Caro-Kann: Exchange Variation and Panov-Botvinnik Attack} Nf6 {[%emt 0:00:29] LiveBook: 20 Games} (7... e6 8. Qe1 Bxe2 9. Qxe2 Nf6 10. Nd2 Bd6 11. g3 O-O 12. f4 a6 13. Nf3 b5 14. a3 Ne7 {½-½ (52) Le,Q (2715)-Nisipeanu,L (2661) Batumi 2018}) 8. Qe1 {[%emt 0:02:16]} e6 {[%emt 0:00:24]} 9. Bg5 {[%emt 0:01:47]} Bxe2 {[%emt 0:02:15]} 10. Qxe2 {[%emt 0:00:16]} Bd6 {[%emt 0:00:07]} 11. g3 {[%emt 0:00:37]} h6 {[%emt 0:00:11]} 12. Be3 $146 {[%emt 0:01:11]} ({Predecessor:} 12. Bxf6 gxf6 13. Nd2 O-O-O 14. b4 h5 {0-1 (67) Lukasiewicz,A (2094)-Rozycki,B (2145) Jastrzebia Gora 2018}) 12... O-O {[%emt 0:01:25]} 13. Nd2 {[%emt 0:01:41]} e5 {[%emt 0:04:04]} 14. dxe5 {[%emt 0:00:05]} Nxe5 {[%emt 0:00:51]} 15. Bf5 {[%emt 0:00:06]} Rfe8 {[%emt 0:04:25]} 16. Rae1 {[%emt 0:05:29]} Nc4 {[%emt 0:11:34]} 17. Nxc4 {[%emt 0:00:14]} dxc4 {[%emt 0:00:11]} 18. Qf3 {[%emt 0:06:58]} Bc5 {[%emt 0:14:35]} 19. Bf4 {[%emt 0:03:50]} Qb6 {[%emt 0:00:09]} 20. Be5 {[%emt 0:02:50]} Re7 {[%emt 0:19:19]} 21. Re2 {[%emt 0:05:39]} Rae8 {[%emt 0:00:17]} 22. Rfe1 {[%emt 0:00:19]} g6 {[%emt 0:04:29]} 23. Bh3 {[%emt 0:13:04]} Qc6 {[%emt 0:04:46]} 24. Qxc6 {[%emt 0:05:53]} bxc6 {[%emt 0:00:04]} 25. Kf1 {[%emt 0:00:09]} Nd5 {[%emt 0:00:50]} 26. Bg2 {[%emt 0:02:20]} Re6 {[%emt 0:01:37]} 27. Bd4 {[%emt 0:08:38]} Bxd4 {[%emt 0:02:06]} 28. cxd4 {[%emt 0:03:43]} Rxe2 {[%emt 0:00:52]} 29. Rxe2 {[%emt 0:00:02]} Rd8 {[%emt 0:04:27]} 30. Rc2 {[%emt 0:03:20]} Nb6 {[%emt 0:00:11]} 31. Rd2 {[%emt 0:00:15]} c5 {[%emt 0:02:40]} 32. d5 {[%emt 0:00:24]} Nc8 {[%emt 0:00:03]} 33. Ke1 {[%emt 0:03:37]} Nd6 {[%emt 0:00:11]} 34. Re2 {[%emt 0:01:55]} Kf8 {[%emt 0:00:15]} 35. Kd2 {[%emt 0:00:45]} Rb8 {[%emt 0:00:33]} 36. Kc2 {[%emt 0:02:08]} h5 {[%emt 0:01:48]} 37. h4 {[%emt 0:02:33]} Nb5 {[%emt 0:02:11]} 38. Re3 {[%emt 0:01:51]} Nd6 {[%emt 0:00:42]} (38... Nd4+ $14 39. Kc3 Nf5) 39. Bf1 {[%emt 0:01:36]} (39. Ra3 $16) 39... Rb7 {[%emt 0:03:41]} 40. Kc3 {[%emt 0:00:28]} Rb4 {[%emt 0:00:27]} 41. Kc2 {[%emt 0:00:50]} Rb7 {[%emt 0:00:33]} 42. Ra3 {[%emt 0:03:05]} Ke7 {[%emt 0:00:03]} 43. Ra6 {[%emt 0:00:34]} Kd7 {[%emt 0:02:33]} 44. Bh3+ {[%emt 0:00:52]} f5 {[%emt 0:05:23]} 45. f4 {[%emt 0:01:44]} Rc7 {[%emt 0:00:29]} 46. Bg2 {[%emt 0:00:22]} Rb7 {[%emt 0:00:24]} 47. Kc3 {[%emt 0:01:27]} Rc7 {[%emt 0:01:04]} 48. Bh1 {[%emt 0:02:32]} Rb7 {[%emt 0:00:35]} 49. Bf3 {[%emt 0:00:05]} Rc7 {[%emt 0:02:28]} 50. Be2 {[%emt 0:00:09]} Rb7 {[%emt 0:02:22]} 51. Bxc4 {[%emt 0:00:25]} Ne4+ {[%emt 0:00:08]} 52. Kc2 {[%emt 0:00:40]} Nd6 {[%emt 0:00:05]} 53. Be2 {[%emt 0:01:24]} Rc7 {[%emt 0:00:47]} 54. Bd3 {[%emt 0:00:37]} Rb7 {[%emt 0:00:28]} 55. Kc3 {[%emt 0:00:12]} Rc7 {[%emt 0:00:36]} 56. Bc2 {[%emt 0:00:59]} Nb5+ {[%emt 0:00:46]} 57. Kc4 $18 {[%emt 0:01:38]} Nd6+ {[%emt 0:00:08]} 58. Kd3 {[%emt 0:00:05]} Ke7 {[%emt 0:00:50]} 59. Ba4 {[%emt 0:00:40]} Rb7 {[%emt 0:00:06]} 60. Kc2 {[%emt 0:01:26]} Rc7 {[%emt 0:00:28]} 61. Kd1 {[%emt 0:00:56]} Rb7 {[%emt 0:00:28]} 62. Kc1 {[%emt 0:00:07]} Rc7 {[%emt 0:01:16]} 63. Kc2 {[%emt 0:00:01]} Rb7 {[%emt 0:00:41]} 64. a3 {[%emt 0:02:52]} Rc7 {[%emt 0:00:19]} 65. b3 {[%emt 0:00:14]} c4 {[%emt 0:01:13]} 66. b4 {[%emt 0:01:20]} c3 {[%emt 0:00:12]} 67. Rc6 {[%emt 0:01:16]} Rb7 {[%emt 0:02:35]} 68. Kxc3 {[%emt 0:00:17]} Ne4+ {[%emt 0:00:03]} 69. Kd4 {[%emt 0:00:15]} Nd6 {[%emt 0:00:04]} 70. Bc2 {[%emt 0:03:29]} Rd7 {[%emt 0:00:41]} 71. Bd3 {[%emt 0:00:13]} Rb7 {[%emt 0:00:21]} 72. Kc5 {[%emt 0:00:09]} Rd7 {[%emt 0:00:12]} 73. a4 {[%emt 0:00:10]} Nb7+ {[%emt 0:01:43]} 74. Kd4 {[%emt 0:00:10]} Nd6 {[%emt 0:00:03]} 75. a5 {[%emt 0:00:06]} Rb7 {[%emt 0:01:20]} 76. Kc5 {[%emt 0:00:03]} Rd7 {[%emt 0:00:02]} 77. a6 {[%emt 0:00:06]} Rd8 {[%emt 0:01:54]} 78. Rc7+ {[%emt 0:00:18]} Rd7 {[%emt 0:00:06]} 79. Kc6 {[%emt 0:00:12]} 1-0

[Event "RUS Cup Final Women 2018"]
[Site "Khanty-Mansiysk"]
[Date "2018.12.10"]
[Round "3.2"]
[White "Shuvalova, Polina"]
[Black "Guseva, Marina"]
[Result "1/2-1/2"]
[ECO "B92"]
[WhiteElo "2441"]
[BlackElo "2408"]
[Annotator "ChessBase"]
[PlyCount "85"]
[EventDate "2018.12.05"]
[EventType "k.o."]
[EventCountry "RUS"]
[SourceTitle "playchess.com"]
[Source "ChessBase"]
[SourceQuality "1"]
[TimeControl "5400+30"]

1. e4 {[%emt 0:00:00]} c5 {[%emt 0:00:00]} 2. Nf3 {[%emt 0:00:00]} d6 {[%emt 0:00:00]} 3. d4 {[%emt 0:00:00]} cxd4 {[%emt 0:00:00]} 4. Nxd4 {[%emt 0:00:00]} Nf6 {[%emt 0:00:00]} 5. Nc3 {[%emt 0:00:00]} a6 {[%emt 0:00:00]} 6. Be2 {[%emt 0:00:00]} e5 {[%emt 0:00:01]} 7. Nb3 {[%emt 0:00:03]} Be7 {[%emt 0:00:05]} 8. O-O {[%emt 0:00:06]} O-O {[%emt 0:00:03]} 9. Qd3 {[%emt 0:01:35]} Be6 {[%emt 0:00:12]} 10. Bd2 {[%emt 0:00:13]} Nbd7 11. Nd5 {[%emt 0:00:18]} Bxd5 {[%emt 0:18:59]} 12. exd5 {[%emt 0:00:04]} a5 {[%emt 0:00:05]} 13. Qb5 {[%emt 0:07:45]} b6 {[%emt 0:01:45]} 14. Rad1 {[%emt 0:06:11]} Qc7 {[%emt 0:03:44]} 15. c4 {[%emt 0:01:58]} a4 {[%emt 0:08:49]} 16. Nc1 {[%emt 0:04:43]} Qc5 {[%emt 0:07:43]} 17. Qxc5 {[%emt 0:04:51]} bxc5 {[%emt 0:00:17]} 18. Nd3 {[%emt 0:02:54]} Rfb8 {[%emt 0:03:08]} 19. Bc1 {[%emt 0:02:01]} e4 {[%emt 0:03:47]} 20. Ne1 {[%emt 0:00:37]} Ne5 {[%emt 0:00:32]} 21. Nc2 {[%emt 0:02:04]} Nfd7 {[%emt 0:01:51]} 22. f3 {[%emt 0:03:26]} exf3 {[%emt 0:02:23]} 23. gxf3 {[%emt 0:00:07]} g5 {[%emt 0:03:52]} 24. Ne3 {[%emt 0:03:29]} Bf6 {[%emt 0:03:28]} 25. Nf5 {[%emt 0:04:08]} Ra6 {[%emt 0:00:04]} 26. Kh1 {[%emt 0:02:17]} Kh8 {[%emt 0:00:55]} 27. Rg1 {[%emt 0:08:17]} Ng6 {[%emt 0:02:36]} 28. Bf1 {[%emt 0:06:26]} Nde5 {[%emt 0:02:42]} 29. Rg3 {[%emt 0:01:31]} Nf4 {[%emt 0:05:05]} 30. h4 {[%emt 0:10:11]} gxh4 {[%emt 0:00:49]} 31. Rg1 {[%emt 0:00:15]} Neg6 {[%emt 0:05:43]} 32. Rg4 {[%emt 0:01:29]} Be5 {[%emt 0:06:58]} 33. Re1 {[%emt 0:07:51]} h5 {[%emt 0:05:00]} 34. Rg5 {[%emt 0:02:15]} Bf6 {[%emt 0:00:38]} 35. Rg1 {[%emt 0:00:37]} h3 {[%emt 0:10:31]} 36. Re4 {[%emt 0:01:28]} Be5 {[%emt 0:00:04]} 37. Rg5 {[%emt 0:00:57]} Rab6 {[%emt 0:02:03]} 38. a3 {[%emt 0:11:26]} Rxb2 {[%emt 0:00:49]} 39. Bxb2 {[%emt 0:03:01]} Rxb2 {[%emt 0:00:03]} 40. Re1 {[%emt 0:00:32]} Rb3 {[%emt 0:00:54]} 41. Bxh3 {[%emt 0:02:02]} Rxf3 {[%emt 0:02:27]} 42. Bf1 {[%emt 0:00:17]} Rxa3 {[%emt 0:00:07]} 43. Rb1 {[%emt 0:02:11]} 1/2-1/2